bitfinex/quotes_SOLUSD_20220113
["timestamp","ask_amount","ask_price","bid_price","bid_amount"]
[1642034824442,24.3257,151.5,151.42,15.9037]
[1642034824641,0.26,151.49,151.42,9.9037]
[1642034824844,2.901,151.49,151.42,9.9037]
[1642034825244,3.151,151.49,151.42,9.9037]
[1642034826570,3.151,151.49,151.42,10.1537]
[1642034826770,3.151,151.49,151.42,9.9037]
[1642034826972,0.51,151.49,151.42,9.9037]
[1642034827170,0.26,151.49,151.42,9.9037]
[1642034827376,24.5757,151.5,151.45,9.9015]
[1642034827572,24.5757,151.5,151.45,16.1205]
[1642034827771,24.5757,151.5,151.46,0.26]
[1642034828271,23.2873,151.52,151.46,0.26]
[1642034828472,23.2873,151.52,151.46,2.9]
[1642034828674,23.2873,151.52,151.47,25.54931635]
[1642034829474,23.2873,151.52,151.47,35.44961635]
[1642034829674,23.5373,151.52,151.47,35.44961635]
[1642034830277,23.2873,151.52,151.47,35.44961635]
[1642034830478,0.26,151.51,151.47,9.9003]
[1642034830675,0.26,151.51,151.46,10.1513]
[1642034831278,0.26,151.51,151.46,9.9013]
[1642034832881,0.26,151.51,151.44,9.9021]
[1642034833081,0.26,151.51,151.44,15.9021]
[1642034833683,0.26,151.51,151.44,9.9021]
[1642034834282,0.26,151.51,151.45,29.05813335]
[1642034834482,0.26,151.51,151.46,9.9011]
[1642034835384,0.26,151.51,151.43,73.2127]
[1642034835582,2.9,151.51,151.43,73.4627]
[1642034835983,3.15,151.51,151.44,6.0]
[1642034836185,0.51,151.51,151.45,28.52834296]
[1642034836384,0.51,151.51,151.45,38.43004296]
[1642034837185,0.26,151.51,151.45,38.68004296]
[1642034838185,0.26,151.51,151.45,38.43004296]
[1642034838587,2.9,151.51,151.45,38.43004296]
[1642034838987,3.15,151.51,151.45,38.43004296]
[1642034839687,0.51,151.51,151.45,38.43004296]
[1642034840092,0.26,151.51,151.45,38.43004296]
[1642034843389,23.5373,151.52,151.45,38.43004296]
[1642034843590,9.9009,151.55,151.48,9.8994]
[1642034843591,2.64,151.55,151.48,9.8994]
[1642034843789,2.64,151.57,151.48,16.7644]
[1642034843989,25.3427,151.58,151.49,15.76]
[1642034844395,25.3427,151.58,151.5,25.13465419]
[1642034844591,22.7047,151.58,151.51,15.8977]
[1642034844791,48.9766,151.61,151.51,16.1577]
[1642034844991,48.9766,151.61,151.52,2.638]
[1642034845196,48.9766,151.61,151.53,28.75455743]
[1642034845394,48.9766,151.61,151.53,35.01455743]
[1642034845590,48.9766,151.61,151.53,35.26455743]
[1642034845791,48.9766,151.61,151.53,44.91075743]
[1642034846195,49.2266,151.61,151.53,9.8962]
[1642034846402,2.898,151.6,151.48,2.638]
[1642034846591,18.398,151.6,151.45,75.3489]
[1642034846792,22.6095,151.59,151.48,0.25]
[1642034846993,8.898,151.58,151.48,0.25]
[1642034847193,9.148,151.58,151.48,0.25]
[1642034847393,9.8997,151.56,151.49,9.8988]
[1642034847594,9.8997,151.56,151.5,28.10049985]
[1642034847798,0.26,151.55,151.5,28.10049985]
[1642034850198,0.26,151.55,151.49,9.8988]
[1642034851200,0.26,151.55,151.48,32.37208258]
[1642034851503,10.1605,151.55,151.48,32.12208258]
[1642034851700,10.4105,151.55,151.48,32.12208258]
[1642034852500,0.51,151.55,151.48,42.02188258]
[1642034852701,0.51,151.55,151.48,44.66188258]
[1642034853003,0.26,151.56,151.48,44.66188258]
[1642034853401,0.26,151.57,151.48,44.66188258]
[1642034853601,2.638,151.56,151.48,42.02188258]
[1642034854001,0.26,151.55,151.48,42.02188258]
[1642034854402,10.4098,151.56,151.48,42.02188258]
[1642034855002,0.51,151.56,151.48,42.27188258]
[1642034855202,0.26,151.56,151.48,42.27188258]
[1642034855402,0.26,151.57,151.48,42.27188258]
[1642034856404,10.1592,151.57,151.48,42.02188258]
[1642034856603,2.638,151.56,151.48,42.02188258]
[1642034856904,0.26,151.55,151.48,42.02188258]
[1642034858705,0.26,151.55,151.48,41.76188258]
[1642034858905,0.26,151.55,151.46,9.9007]
[1642034859106,2.64,151.54,151.46,9.9007]
[1642034859306,97.7421,151.55,151.46,9.9007]
[1642034859507,101.8926,151.55,151.46,9.9007]
[1642034859706,111.3926,151.55,151.45,75.3509]
[1642034859911,20.18916591,151.54,151.45,75.3509]
[1642034860133,68.68,151.53,151.45,72.7109]
[1642034860336,68.94,151.53,151.45,72.7109]
[1642034860537,69.19,151.53,151.45,72.7109]
[1642034860936,6.0,151.52,151.45,72.7109]
[1642034861134,6.25,151.52,151.45,72.7109]
[1642034861334,0.26,151.51,151.45,72.7109]
[1642034861536,10.1634,151.51,151.45,72.7109]
[1642034861734,10.4134,151.51,151.45,72.7109]
[1642034862937,0.25,151.51,151.45,72.7109]
[1642034863137,0.25,151.52,151.45,72.7109]
[1642034863339,0.25,151.52,151.45,75.3509]
[1642034863542,0.26,151.52,151.45,75.3509]
[1642034863938,10.1623,151.52,151.45,75.3509]
[1642034864139,10.4123,151.52,151.45,75.3509]
[1642034864339,0.25,151.52,151.45,75.3509]
[1642034864540,0.26,151.51,151.45,75.3509]
[1642034865141,10.4126,151.52,151.45,85.2526]
[1642034865342,16.1626,151.52,151.45,75.3509]
[1642034865541,16.4126,151.52,151.45,75.3509]
[1642034866045,10.4126,151.52,151.45,75.3509]
[1642034866543,6.0,151.51,151.45,72.7109]
[1642034866742,0.25,151.51,151.45,72.7109]
[1642034868145,9.903,151.51,151.45,72.7109]
[1642034868546,0.26,151.5,151.45,72.7109]
[1642034869247,10.153,151.51,151.45,72.7109]
[1642034869848,0.25,151.51,151.45,72.7109]
[1642034870144,6.0,151.52,151.45,72.7109]
[1642034870647,6.25,151.52,151.45,72.7109]
[1642034870847,0.26,151.51,151.45,72.7109]
[1642034871446,10.4124,151.52,151.45,72.7109]
[1642034871646,16.4124,151.52,151.45,72.7109]
[1642034872045,10.4124,151.52,151.45,72.7109]
[1642034872245,10.1624,151.52,151.45,72.7109]
[1642034872747,10.1624,151.52,151.45,75.3509]
[1642034873646,10.4124,151.52,151.45,75.3509]
[1642034875847,10.4124,151.52,151.45,72.7109]
[1642034877951,6.0,151.51,151.45,72.7109]
[1642034878151,6.25,151.51,151.45,72.7109]
[1642034878350,0.26,151.5,151.45,72.7109]
[1642034879753,6.26,151.51,151.45,72.7109]
[1642034879955,0.26,151.51,151.45,72.7109]
[1642034880155,0.51,151.51,151.45,72.7109]
[1642034881155,0.26,151.51,151.45,72.7109]
[1642034881955,0.26,151.51,151.46,6.0]
[1642034882360,0.26,151.51,151.45,72.7109]
[1642034882559,0.26,151.51,151.45,82.6128]
[1642034882758,22.7189,151.53,151.45,82.6128]
[1642034882958,22.7189,151.53,151.46,2.9]
[1642034883158,22.7189,151.53,151.47,25.41663536]
[1642034884163,22.9689,151.53,151.47,25.41663536]
[1642034884360,22.9689,151.53,151.47,35.31713536]
[1642034886492,22.9689,151.53,151.46,2.9]
[1642034886695,0.26,151.52,151.45,72.7109]
[1642034886991,2.9,151.52,151.45,71.7109]
[1642034887191,3.15,151.52,151.45,71.7109]
[1642034887591,3.15,151.52,151.45,98.91243623]
[1642034888491,9.9031,151.51,151.45,98.91243623]
[1642034888790,10.1531,151.51,151.45,71.7109]
[1642034888991,0.26,151.5,151.45,71.7109]
[1642034889491,0.51,151.51,151.45,71.7109]
[1642034889990,0.26,151.51,151.45,71.7109]
[1642034890392,9.904,151.5,151.45,71.7109]
[1642034890595,9.904,151.5,151.43,25.81003995]
[1642034890893,0.26,151.49,151.42,22.0439]
[1642034891094,0.26,151.49,151.45,0.934264]
[1642034892995,16.1645,151.49,151.45,0.934264]
[1642034893194,16.4145,151.49,151.45,0.934264]
[1642034893594,2.64,151.48,151.45,0.934264]
[1642034893794,5.56430001,151.47,151.45,0.934264]
[1642034893994,5.82430001,151.47,151.45,0.934264]
[1642034894195,6.07430001,151.47,151.45,0.934264]
[1642034895495,15.98030001,151.47,151.45,0.934264]
[1642034895896,35.0,151.46,151.39,6.0]
[1642034896197,53.391,151.46,151.38,2.64]
[1642034896495,66.3,151.45,151.38,2.64]
[1642034896695,89.8268,151.45,151.38,2.64]
[1642034896899,93.76011843,151.43,151.38,2.64]
[1642034897196,9.91,151.41,151.38,2.64]
[1642034897395,5.82430001,151.4,151.38,2.64]
[1642034897596,5.82430001,151.4,151.34,2.642]
[1642034897795,6.07430001,151.4,151.34,6.0]
[1642034897998,6.07430001,151.4,151.33,8.642]
[1642034898398,15.98460001,151.4,151.33,8.642]
[1642034898798,15.98460001,151.4,151.34,0.26]
[1642034899198,15.72460001,151.4,151.34,0.26]
[1642034899402,5.81430001,151.4,151.33,18.8017]
[1642034899598,5.81430001,151.4,151.33,8.892]
[1642034899798,0.26,151.39,151.33,8.892]
[1642034900400,9.9105,151.4,151.33,8.892]
[1642034900599,9.9105,151.4,151.34,0.02]
[1642034900801,0.26,151.39,151.34,0.02]
[1642034901501,10.171,151.39,151.34,0.02]
[1642034901700,10.421,151.39,151.34,0.02]
[1642034902902,0.51,151.39,151.34,0.02]
[1642034903307,0.51,151.41,151.34,0.02]
[1642034903504,0.26,151.41,151.34,0.02]
[1642034904508,9.9105,151.4,151.34,0.02]
[1642034904704,10.1605,151.4,151.34,0.02]
[1642034904903,0.26,151.39,151.34,0.02]
[1642034905504,0.25,151.4,151.34,0.02]
[1642034905904,0.26,151.41,151.34,0.02]
[1642034907109,25.1469,151.42,151.34,0.02]
[1642034907308,9.5,151.41,151.34,0.02]
[1642034907508,2.642,151.4,151.34,0.02]
[1642034907709,33.5154,151.39,151.34,0.02]
[1642034907909,68.682,151.38,151.34,0.02]
[1642034908108,9.5,151.37,151.34,0.02]
[1642034908308,36.55384776,151.36,151.34,0.02]
[1642034908608,9.9149,151.35,151.34,0.02]
[1642034909009,10.4249,151.35,151.34,0.02]
[1642034909410,100.4106,151.35,151.34,0.02]
[1642034910813,103.0526,151.35,151.34,0.02]
[1642034911416,37.0126,151.35,151.34,0.02]
[1642034913347,34.3706,151.35,151.34,0.02]
[1642034917350,100.4106,151.35,151.34,0.02]
[1642034917647,118.64977135,151.35,151.34,0.02]
[1642034919650,118.64977135,151.35,151.27,2.642]
[1642034919853,12.402,151.34,151.27,2.642]
[1642034920053,9.917,151.31,151.27,2.642]
[1642034920254,10.167,151.31,151.27,2.642]
[1642034920451,0.26,151.3,151.27,2.642]
[1642034920651,2.53210004,151.29,151.27,2.642]
[1642034921055,2.78210004,151.29,151.27,2.642]
[1642034921255,12.69940004,151.29,151.27,2.642]
[1642034921452,2.78210004,151.29,151.27,2.642]
[1642034922455,2.78210004,151.29,151.24,31.58949612]
[1642034922652,2.78210004,151.29,151.25,2.644]
[1642034924254,2.53210004,151.29,151.25,2.644]
[1642034924456,2.53210004,151.29,151.26,0.26]
[1642034924654,33.7785,151.33,151.27,0.50009992]
[1642034925255,33.7785,151.33,151.27,26.30487234]
[1642034925854,0.26,151.32,151.27,26.30487234]
[1642034928960,34.0285,151.33,151.27,26.30487234]
[1642034929158,9.9137,151.35,151.27,26.55487234]
[1642034929359,9.9137,151.35,151.28,2.642]
[1642034929560,0.26,151.34,151.28,2.642]
[1642034930162,0.26,151.34,151.24,2.642]
[1642034930363,10.1637,151.35,151.26,9.9135]
[1642034930561,10.1637,151.35,151.27,2.642]
[1642034930761,10.1637,151.35,151.27,3.152]
[1642034931960,0.26,151.34,151.27,3.152]
[1642034932162,0.26,151.34,151.27,2.902]
[1642034932363,10.174,151.34,151.27,2.642]
[1642034932561,10.174,151.34,151.26,2.642]
[1642034932762,10.174,151.34,151.25,2.642]
[1642034932763,48.1777,151.34,151.25,2.642]
[1642034933066,2.644,151.33,151.22,79.5828]
[1642034933263,23.5523,151.32,151.22,79.5828]
[1642034933462,2.644,151.31,151.22,104.86158413]
[1642034933661,2.894,151.31,151.22,104.86158413]
[1642034933862,9.9176,151.29,151.22,104.86158413]
[1642034934067,9.9176,151.29,151.22,102.21758413]
[1642034934263,10.1676,151.29,151.22,102.21758413]
[1642034934867,0.26,151.28,151.22,102.21758413]
[1642034936167,10.1676,151.29,151.22,102.21758413]
[1642034936367,10.1676,151.29,151.23,0.26]
[1642034936568,0.25,151.29,151.23,0.26]
[1642034936767,0.26,151.28,151.22,86.8553]
[1642034936967,0.26,151.28,151.22,76.9388]
[1642034937368,0.26,151.3,151.22,76.9388]
[1642034937569,9.9173,151.29,151.22,76.9388]
[1642034937768,10.1673,151.29,151.22,76.9388]
[1642034938068,0.26,151.28,151.22,78.82341808]
[1642034939596,0.25,151.29,151.22,78.82341808]
[1642034939796,23.4275,151.3,151.22,78.82341808]
[1642034939996,23.6775,151.3,151.22,78.82341808]
[1642034940396,33.5941,151.3,151.22,88.73981808]
[1642034940597,33.5941,151.3,151.22,78.82341808]
[1642034940998,66.04,151.29,151.22,78.82341808]
[1642034941197,2.894,151.29,151.22,78.82341808]
[1642034941398,0.26,151.28,151.22,78.82341808]
[1642034941898,66.55,151.29,151.22,78.82341808]
[1642034942310,66.55,151.29,151.22,1.88461808]
[1642034942311,9.919,151.27,151.22,1.88461808]
[1642034942500,0.26,151.26,151.22,1.88461808]
[1642034943199,0.51,151.27,151.22,1.88461808]
[1642034943404,9.9194,151.26,151.22,1.88461808]
[1642034943800,0.26,151.25,151.22,1.88461808]
[1642034944200,10.1694,151.26,151.23,0.50009992]
[1642034945002,5.56430001,151.25,151.23,0.50009992]
[1642034945202,5.81430001,151.25,151.2,2.21517811]
[1642034945403,0.26,151.24,151.2,0.33056003]
[1642034945604,10.1699,151.25,151.2,0.33056003]
[1642034945904,0.26,151.24,151.2,0.33056003]
[1642034948611,10.1806,151.24,151.2,0.33056003]
[1642034948809,12.8256,151.24,151.2,0.33056003]
[1642034949009,13.0756,151.24,151.2,0.33056003]
[1642034949411,10.4306,151.24,151.2,0.33056003]
[1642034951512,10.1706,151.24,151.2,0.33056003]
[1642034952713,10.1811,151.23,151.2,0.33056003]
[1642034953114,5.56430001,151.22,151.2,0.33056003]
[1642034953516,5.81430001,151.22,151.2,0.33056003]
[1642034954514,0.26,151.21,151.2,0.33056003]
[1642034954915,5.81430001,151.22,151.2,0.33056003]
[1642034955115,0.26,151.21,151.2,0.33056003]
[1642034955721,29.48851164,151.21,151.2,0.33056003]
[1642034956120,29.73851164,151.21,151.2,0.33056003]
[1642034958222,32.38351164,151.21,151.2,0.33056003]
[1642034959423,37.50351164,151.21,151.2,0.33056003]
[1642034959623,42.0,151.2,151.14,1.88461808]
[1642034959821,9.9246,151.18,151.14,1.88461808]
[1642034960024,2.906,151.17,151.14,1.88461808]
[1642034960221,6.842,151.17,151.13,1.88461808]
[1642034960621,26.54269061,151.16,151.13,1.88461808]
[1642034960828,9.927,151.15,151.09,3.63087608]
[1642034961021,10.187,151.15,151.09,3.63087608]
[1642034961220,10.437,151.15,151.09,3.63087608]
[1642034961630,10.437,151.15,151.08,73.7783]
[1642034962226,33.5261,151.15,151.08,73.7783]
[1642034962424,33.5261,151.15,151.09,2.646]
[1642034964826,33.5261,151.15,151.08,73.7783]
[1642034965255,33.5261,151.15,151.09,2.646]
[1642034967257,33.5261,151.15,151.09,2.146]
[1642034968256,33.5261,151.15,151.08,102.8439113]
[1642034968457,33.5261,151.15,151.08,73.7783]
[1642034969858,33.5261,151.15,151.08,73.2783]
[1642034972660,2.646,151.18,151.09,0.26]
[1642034972861,34.2244,151.17,151.09,0.26]
[1642034973061,34.2244,151.17,151.08,73.2783]
[1642034973461,34.2244,151.17,151.09,6.0]
[1642034973864,36.8704,151.17,151.09,6.0]
[1642034974062,37.1204,151.17,151.09,6.0]
[1642034974262,9.927,151.14,151.09,6.0]
[1642034974463,0.26,151.13,151.09,6.0]
[1642034975266,0.51,151.14,151.09,6.0]
[1642034975666,9.9279,151.13,151.09,6.0]
[1642034975865,22.97959871,151.12,151.06,24.2364]
[1642034976067,23.23959871,151.12,151.03,87.3495]
[1642034976265,23.48959871,151.12,151.03,87.3495]
[1642034976465,22.98959871,151.12,151.03,77.4205]
[1642034976666,9.9292,151.11,151.03,77.4205]
[1642034976869,2.646,151.1,151.03,77.4205]
[1642034977069,26.94893026,151.09,151.03,0.095]
[1642034977272,27.19893026,151.09,151.03,0.095]
[1642034977469,0.26,151.08,151.03,0.095]
[1642034977871,23.9946,151.08,151.03,0.095]
[1642034978270,24.2446,151.08,151.03,0.095]
[1642034978470,34.1762,151.08,151.03,0.095]
[1642034978870,2.646,151.1,151.03,0.095]
[1642034979071,9.5,151.13,151.03,5.231]
[1642034979470,9.5,151.13,151.04,6.0]
[1642034979671,9.5,151.13,151.04,32.61814629]
[1642034979874,9.5,151.13,151.05,0.26]
[1642034980070,9.5,151.13,151.06,9.9273]
[1642034980272,9.5,151.13,151.05,0.26]
[1642034980672,9.5,151.13,151.04,32.61814629]
[1642034981071,23.2724,151.12,151.04,32.61814629]
[1642034981270,23.5224,151.12,151.04,32.61814629]
[1642034981475,23.5224,151.12,151.05,10.1881]
[1642034981875,0.25,151.12,151.06,6.0]
[1642034982476,22.9381,151.14,151.05,85.7991]
[1642034982672,25.8341,151.14,151.05,85.7991]
[1642034982875,0.26,151.13,151.05,85.5391]
[1642034983275,16.40022093,151.13,151.05,85.5391]
[1642034983675,16.65022093,151.13,151.05,85.5391]
[1642034983904,16.65022093,151.13,151.05,79.5391]
[1642034984678,2.646,151.12,151.05,79.5391]
[1642034984981,0.26,151.11,151.05,79.5391]
[1642034985781,10.1897,151.11,151.05,79.5391]
[1642034986179,10.4397,151.11,151.05,79.5391]
[1642034988078,27.28830804,151.1,151.05,79.5391]
[1642034988279,37.46860804,151.1,151.05,79.5391]
[1642034988478,0.26,151.09,151.05,79.5391]
[1642034988881,0.26,151.09,151.03,0.095]
[1642034989281,12.8368,151.09,151.03,0.095]
[1642034989483,22.8413,151.08,151.03,0.095]
[1642034989683,23.0913,151.08,151.03,0.095]
[1642034989886,0.26,151.07,151.03,0.095]
[1642034990585,23.0913,151.08,151.03,0.095]
[1642034990785,0.26,151.07,151.03,0.095]
[1642034992821,23.0913,151.08,151.03,0.095]
[1642034993422,23.0913,151.08,151.03,6.095]
[1642034995621,23.0913,151.08,151.03,0.095]
[1642034997022,2.648,151.09,151.03,10.0243]
[1642034997222,0.25,151.09,151.03,10.0243]
[1642034998427,36.2129,151.11,151.03,10.0243]
[1642034998727,111.7529,151.11,151.03,0.095]
[1642034998924,0.26,151.1,151.03,0.095]
[1642034999125,2.646,151.09,151.03,0.095]
[1642034999327,13.56426452,151.08,151.03,0.095]
[1642034999625,2.648,151.07,151.03,0.095]
[1642034999824,0.25,151.08,151.03,0.095]
[1642035000125,0.51,151.08,151.03,0.095]
[1642035000427,9.9323,151.07,151.03,0.095]
[1642035000633,10.1823,151.07,151.03,0.095]
[1642035002529,2.648,151.06,151.03,0.095]
[1642035002727,15.49890001,151.05,151.03,0.095]
[1642035002929,25.25890001,151.05,151.03,0.095]
[1642035003231,2.648,151.04,151.03,0.095]
[1642035003427,12.408,151.04,151.03,0.095]
[1642035003628,36.487,151.04,151.03,0.095]
[1642035004028,112.4633,151.04,151.03,0.095]
[1642035004429,125.89665004,151.04,150.88,9.9268]
[1642035004629,118.71,151.02,150.88,9.9268]
[1642035004830,35.8349,151.01,150.88,9.9268]
[1642035005136,9.9406,150.97,150.89,27.75606785]
[1642035005330,9.5,150.96,150.89,27.75606785]
[1642035005529,9.76,150.96,150.88,9.9268]
[1642035005732,10.01,150.96,150.88,9.9268]
[1642035006131,2.65,150.95,150.88,9.9268]
[1642035006333,9.5,150.94,150.88,9.9268]
[1642035006630,0.26,150.94,150.88,9.9268]
[1642035006832,9.76,150.96,150.88,9.9268]
[1642035007130,9.76,150.96,150.89,6.0]
[1642035007331,9.76,150.96,150.88,6.0]
[1642035007532,9.5,150.96,150.88,6.0]
[1642035009131,9.75,150.96,150.88,15.9393]
[1642035009431,0.26,150.95,150.88,15.9393]
[1642035009833,8.211,150.95,150.88,6.0]
[1642035010032,7.951,150.95,150.86,6.0]
[1642035010234,8.201,150.95,150.88,9.9392]
[1642035010733,8.201,150.95,150.89,6.0]
[1642035010940,0.25,150.95,150.89,6.0]
[1642035011138,23.0629,150.97,150.89,6.0]
[1642035011334,0.26,150.96,150.89,6.0]
[1642035011535,0.26,150.96,150.89,15.9387]
[1642035013544,2.65,150.98,150.89,46.50387809]
[1642035013739,24.7293,151.01,150.89,46.75387809]
[1642035013938,24.7293,151.01,150.89,56.25387809]
[1642035014542,23.69163021,151.01,150.89,56.25387809]
[1642035014740,23.69163021,151.01,150.94,9.935]
[1642035014938,23.94163021,151.01,150.94,9.935]
[1642035015338,23.94163021,151.01,150.94,9.435]
[1642035015639,23.94163021,151.01,150.89,6.0]
[1642035015838,12.149,151.0,150.89,6.0]
[1642035016041,12.149,151.0,150.88,6.0]
[1642035016238,12.399,151.0,150.88,6.0]
[1642035016640,0.26,150.99,150.88,6.0]
[1642035016839,2.65,150.98,150.89,23.95440879]
[1642035017039,26.9074,150.99,150.9,6.0]
[1642035017239,0.25,150.98,150.9,6.25]
[1642035018140,20.73689876,150.98,150.93,9.936]
[1642035018343,23.38589876,150.98,150.9,6.0]
[1642035018544,20.98689876,150.98,150.9,6.0]
[1642035018946,0.25,150.98,150.9,6.0]
[1642035019144,0.25,150.98,150.9,6.25]
[1642035019342,0.51,150.98,150.9,6.25]
[1642035019542,0.51,150.98,150.91,9.9369]
[1642035019743,24.2474,150.99,150.91,10.1969]
[1642035019943,24.2474,150.99,150.91,9.9369]
[1642035020141,26.8964,150.99,150.91,9.9369]
[1642035021345,2.649,150.99,150.91,10.1869]
[1642035021544,23.653,151.03,150.92,6.26]
[1642035021743,23.653,151.03,150.97,9.9334]
[1642035022244,48.75558326,151.03,150.97,9.9334]
[1642035022645,49.00558326,151.03,150.97,9.9334]
[1642035023046,49.00558326,151.03,150.95,9.9343]
[1642035023446,48.75558326,151.03,150.95,9.9343]
[1642035024250,0.26,151.02,150.93,79.7147]
[1642035024449,2.909,151.02,150.93,79.7147]
[1642035025049,25.8806,151.02,150.93,79.7147]
[1642035025281,35.6306,151.02,150.93,79.7147]
[1642035026380,45.5681,151.02,150.91,9.9368]
[1642035026980,45.5681,151.02,150.89,23.65796241]
[1642035026981,66.04,151.01,150.89,23.65796241]
[1642035027182,26.127,151.0,150.89,23.90796241]
[1642035027379,45.45294571,151.0,150.89,23.90796241]
[1642035027580,0.26,150.99,150.89,33.84606241]
[1642035028181,0.26,150.99,150.89,10.1881]
[1642035028784,2.65,150.98,150.89,10.1881]
[1642035028984,0.26,150.97,150.89,10.1881]
[1642035029281,0.26,150.97,150.89,9.9381]
[1642035029481,2.65,150.98,150.89,9.9381]
[1642035029680,0.25,150.98,150.89,9.9381]
[1642035029883,0.25,150.98,150.9,6.26]
[1642035030082,0.25,150.98,150.94,9.9354]
[1642035030782,23.728,151.0,150.94,9.9354]
[1642035032183,40.77552025,151.0,150.94,9.9354]
[1642035032683,0.26,150.99,150.9,33.1178]
[1642035032883,0.26,150.99,150.93,6.0]
[1642035033284,40.77552025,151.0,150.92,9.9361]
[1642035033484,40.77552025,151.0,150.93,6.0]
[1642035033988,40.77552025,151.0,150.91,6.0]
[1642035034185,40.77552025,151.0,150.91,6.25]
[1642035034385,40.77552025,151.0,150.93,9.9359]
[1642035034585,23.728,151.0,150.94,6.0]
[1642035034786,23.728,151.0,150.92,0.26]
[1642035036087,9.9363,151.04,150.92,0.26]
[1642035036088,2.649,151.06,150.94,9.9354]
[1642035036287,2.649,151.06,150.95,74.4678]
[1642035036492,26.2295,151.07,150.96,6.0]
[1642035036893,30.97313225,151.06,150.96,6.0]
[1642035037089,2.648,151.05,150.95,107.5748]
[1642035037290,0.26,151.04,150.93,9.5]
[1642035037492,13.45539672,151.02,150.93,9.5]
[1642035037691,2.649,151.01,150.93,9.5]
[1642035037892,0.26,151.01,150.93,9.5]
[1642035038094,0.51,151.01,150.93,9.5]
[1642035038494,0.51,151.01,150.93,19.4356]
[1642035039096,3.159,151.01,150.93,19.4356]
[1642035039294,2.909,151.01,150.93,19.4356]
[1642035039493,3.159,151.01,150.93,19.4356]
[1642035039994,69.199,151.01,150.87,15.119387]
[1642035040196,24.2455,151.0,150.87,15.119387]
[1642035040398,2.91,150.99,150.88,6.0]
[1642035040795,55.53793225,150.98,150.88,6.0]
[1642035040996,2.91,150.97,150.88,15.9389]
[1642035041196,3.16,150.97,150.88,15.9389]
[1642035041395,3.16,150.97,150.88,6.0]
[1642035042295,69.2,150.97,150.88,6.0]
[1642035042495,79.1399,150.97,150.88,6.0]
[1642035044032,79.1399,150.97,150.85,6.0]
[1642035044232,34.3957,150.96,150.85,6.0]
[1642035044431,30.97313225,150.98,150.86,34.50681193]
[1642035044633,30.97313225,150.98,150.86,36.21134177]
[1642035044832,30.97313225,150.98,150.87,6.0]
[1642035045032,30.97313225,150.98,150.88,9.5]
[1642035045231,30.97313225,150.98,150.89,26.9912015]
[1642035045431,30.97313225,150.98,150.9,9.5]
[1642035045633,2.91,150.97,150.9,9.5]
[1642035045832,0.26,150.97,150.9,9.5]
[1642035047332,2.91,150.97,150.9,9.5]
[1642035047537,68.95,150.97,150.9,9.5]
[1642035047731,69.2,150.97,150.9,9.5]
[1642035048434,79.1393,150.97,150.9,9.5]
[1642035048933,13.0993,150.97,150.9,9.5]
[1642035049134,2.9,150.97,150.9,9.5]
[1642035049334,0.25,150.97,150.9,9.5]